fUST/lending_fUST_20250206
["ID","MTS","AMOUNT","RATE_DAILY","PERIOD"]
[351806494,1738794642514,-500.0,0.00013698,2]
[351806496,1738794642524,-500.0,0.00013698,2]
[351806498,1738794642534,-500.0,0.00013698,2]
[351806500,1738794642544,-500.0,0.00013698,2]
[351806502,1738794642554,-500.0,0.00013698,2]
[351806504,1738794642564,-840.64,0.00013698,2]
[351806506,1738794642573,-658.0,0.00013698,2]
[351806508,1738794642582,-500.0,0.00013698,2]
[351806510,1738794642592,-500.0,0.00013698,2]
[351806512,1738794642602,-500.0,0.00013698,2]
[351806514,1738794642612,-500.0,0.00013698,2]
[351806516,1738794642622,-500.0,0.00013698,2]
[351806518,1738794642632,-500.0,0.00013698,2]
[351806520,1738794642642,-500.0,0.00013698,2]
[351806522,1738794642652,-500.0,0.00013698,2]
[351806524,1738794642663,-1831.28,0.00013698,2]
[351806526,1738794642673,-500.0,0.00013698,2]
[351806528,1738794642682,-500.0,0.00013698,2]
[351806530,1738794642692,-500.0,0.00013698,2]
[351806532,1738794642702,-500.0,0.00013698,2]
[351806533,1738794642711,-500.0,0.00013698,2]
[351806536,1738794642722,-500.0,0.00013698,2]
[351806537,1738794642732,-501.71058701,0.00013698,2]
[351806539,1738794642742,-500.0,0.00013698,2]
[351806541,1738794642752,-546.9,0.00013698,2]
[351806543,1738794642761,-500.0,0.00013698,2]
[351806545,1738794642771,-500.0,0.00013698,2]
[351806547,1738794642781,-500.0,0.00013698,2]
[351806549,1738794642792,-1524.33,0.00013698,2]
[351806551,1738794642803,-500.0,0.00013698,2]
[351806553,1738794642815,-500.0,0.00013698,2]
[351806555,1738794642824,-1010.79,0.00013698,2]
[351806557,1738794642835,-500.0,0.00013698,2]
[351806559,1738794642844,-500.0,0.00013698,2]
[351806561,1738794642855,-500.0,0.00013698,2]
[351806563,1738794642865,-500.0,0.00013698,2]
[351806565,1738794642875,-500.0,0.00013698,2]
[351806567,1738794642886,-500.0,0.00013698,2]
[351806569,1738794642896,-806.75,0.00013698,2]
[351806571,1738794642905,-500.0,0.00013698,2]
[351806573,1738794642921,-500.0,0.00013698,2]
[351806575,1738794642932,-500.0,0.00013698,2]
[351806577,1738794642944,-500.0,0.00013698,2]
[351806579,1738794642954,-500.0,0.00013698,2]
[351806581,1738794642965,-590.1,0.00013698,2]
[351806583,1738794642975,-500.0,0.00013698,2]
[351806585,1738794642985,-500.0,0.00013698,2]
[351806587,1738794642995,-682.04,0.00013698,2]
[351806589,1738794643005,-626.29,0.00013698,2]
[351806591,1738794643015,-500.0,0.00013698,2]
[351806593,1738794643026,-962.32,0.00013698,2]
[351806594,1738794643036,-532.84,0.00013698,2]
[351806596,1738794643047,-500.26325349,0.00013698,2]
[351806598,1738794643057,-500.0,0.00013698,2]
[351806600,1738794643067,-631.12,0.00013698,2]
[351806602,1738794643077,-518.82305619,0.00013698,2]
[351806604,1738794643087,-500.0,0.00013698,2]
[351806606,1738794643097,-500.0,0.00013698,2]
[351806608,1738794643106,-947.61,0.00013698,2]
[351806610,1738794643115,-500.0,0.00013698,2]
[351806612,1738794643125,-500.0,0.00013698,2]
[351806614,1738794643134,-1012.88,0.00013698,2]
[351806616,1738794643145,-725.46,0.00013698,2]
[351806618,1738794643155,-500.0,0.00013698,2]
[351806620,1738794643171,-1242.07,0.00013698,2]
[351806622,1738794643181,-311.54707333,0.00013698,2]
[351806624,1738794643190,-201.90177402,0.00013698,2]
[351806626,1738794643200,-706.88,0.00013698,2]
[351806628,1738794643210,-500.0,0.00013698,2]
[351806629,1738794643220,-2923.91,0.00013698,2]
[351806632,1738794643230,-500.0,0.00013698,2]
[351806633,1738794643240,-500.0,0.00013698,2]
[351806635,1738794643250,-569.29,0.00013698,2]
[351806637,1738794643260,-790.52,0.00013698,2]
[351806638,1738794643269,-500.0,0.00013698,2]
[351806639,1738794643279,-1468.09,0.00013698,2]
[351806640,1738794643288,-3315.18,0.00013698,2]
[351806641,1738794643298,-500.0,0.00013698,2]
[351806642,1738794643307,-503.78461182,0.00013698,2]
[351806643,1738794643317,-500.0,0.00013698,2]
[351806644,1738794643326,-500.0,0.00013698,2]
[351806645,1738794643336,-500.0,0.00013698,2]
[351806646,1738794643346,-500.0,0.00013698,2]
[351806647,1738794643355,-4967.61,0.00013698,2]
[351806648,1738794643364,-500.0,0.00013698,2]
[351806649,1738794643374,-500.0,0.00013698,2]
[351806650,1738794643383,-193.79229967,0.00013698,2]
[351806651,1738794643393,-899.07,0.00013698,2]
[351806652,1738794643403,-11682.56,0.00013698,2]
[351806653,1738794643415,-1067.31,0.00013698,2]
[351806654,1738794643425,-1000.0,0.00013698,2]
[351806655,1738794643435,-500.0,0.00013698,2]
[351806656,1738794643445,-2772.52,0.00013698,2]
[351806658,1738794643454,-614.53,0.00013698,2]
[351806660,1738794643464,-585.91,0.00013698,2]
[351806662,1738794643474,-500.0,0.00013698,2]
[351806664,1738794643483,-501.83177931,0.00013698,2]
[351806667,1738794643493,-500.0,0.00013698,2]
[351806668,1738794643502,-500.0,0.00013698,2]
[351806671,1738794643511,-500.0,0.00013698,2]
[351806673,1738794643521,-500.0,0.00013698,2]
[351806675,1738794643530,-1984.45,0.00013698,2]
[351806676,1738794643539,-500.0,0.00013698,2]
[351806678,1738794643548,-188.0,0.00013698,2]
[351806680,1738794643558,-755.55,0.00013698,2]
[351806682,1738794643567,-500.0,0.00013698,2]
[351806684,1738794643577,-34221.79,0.00013698,2]
[351806686,1738794643586,-1442.48,0.00013698,2]
[351806688,1738794643596,-5962.74,0.00013698,2]
[351806690,1738794643605,-460.53401954,0.00013698,2]
[351806692,1738794643615,-500.0,0.00013698,2]
[351806694,1738794643625,-500.0,0.00013698,2]
[351806697,1738794643634,-500.0,0.00013698,2]
[351806699,1738794643644,-1867.03,0.00013698,2]
[351806700,1738794643653,-500.0,0.00013698,2]
[351806702,1738794643667,-1084.77,0.00013698,2]
[351806704,1738794643676,-500.0,0.00013698,2]
[351806707,1738794643686,-500.0,0.00013698,2]
[351806709,1738794643696,-874.72,0.00013698,2]
[351806711,1738794643706,-500.0,0.00013698,2]
[351806713,1738794643715,-647.71755536,0.00013698,2]
[351806715,1738794643725,-500.0,0.00013698,2]
[351806717,1738794643734,-500.0,0.00013698,2]
[351806719,1738794643744,-500.0,0.00013698,2]
[351806721,1738794643755,-500.0,0.00013698,2]
[351806723,1738794643765,-5216.47,0.00013698,2]
[351806725,1738794643774,-500.0,0.00013698,2]
[351806727,1738794643784,-1577.99,0.00013698,2]
[351806740,1738794643796,-503.49486909,0.00013698,2]
[351806742,1738794643924,-500.0,0.00013698,2]
[351806744,1738794643934,-500.0,0.00013698,2]
[351806746,1738794643944,-500.0,0.00013698,2]
[351806748,1738794643954,-500.0,0.00013698,2]
[351806750,1738794643964,-1571.04,0.00013698,2]
[351806752,1738794643974,-1020.32,0.00013698,2]
[351806754,1738794643984,-500.0,0.00013698,2]
[351806756,1738794643993,-644.18,0.00013698,2]
[351806758,1738794644003,-1965.34,0.00013698,2]
[351806760,1738794644013,-1965.34,0.00013698,2]
[351806762,1738794644022,-1965.34,0.00013698,2]
[351806764,1738794644032,-1965.34,0.00013698,2]
[351806766,1738794644042,-1965.34,0.00013698,2]
[351806768,1738794644052,-1965.34,0.00013698,2]
[351806770,1738794644063,-1965.34,0.00013698,2]
[351806772,1738794644073,-1965.34,0.00013698,2]
[351806774,1738794644083,-1965.34,0.00013698,2]
[351806775,1738794644092,-1045.55,0.00013698,2]
[351806776,1738794644102,-500.0,0.00013698,2]
[351806777,1738794644111,-1965.34,0.00013698,2]
[351806778,1738794644121,-1965.34,0.00013698,2]
[351806779,1738794644130,-1965.34,0.00013698,2]
[351806780,1738794644140,-2377.27,0.00013698,2]
[351806781,1738794644150,-1965.34,0.00013698,2]
[351806782,1738794644162,-1965.34,0.00013698,2]
[351806783,1738794644172,-1965.34,0.00013698,2]
[351806784,1738794644182,-514.52,0.00013698,2]
[351806786,1738794644192,-1965.34,0.00013698,2]
[351806787,1738794644202,-1965.34,0.00013698,2]
[351806789,1738794644212,-500.0,0.00013698,2]
[351806791,1738794644221,-1965.34,0.00013698,2]
[351806792,1738794644231,-1965.34,0.00013698,2]
[351806793,1738794644240,-500.0,0.00013698,2]
[351806794,1738794644250,-1965.34,0.00013698,2]
[351806796,1738794644260,-1965.34,0.00013698,2]
[351806797,1738794644269,-500.0,0.00013698,2]
[351806798,1738794644280,-1965.34,0.00013698,2]
[351806800,1738794644290,-1965.34,0.00013698,2]
[351806801,1738794644300,-1965.47,0.00013698,2]
[351806803,1738794644310,-500.0,0.00013698,2]
[351806805,1738794644320,-1371.98,0.00013698,2]
[351806807,1738794644330,-500.0,0.00013698,2]
[351806809,1738794644340,-7364.57,0.00013698,2]
[351806810,1738794644349,-500.0,0.00013698,2]
[351806811,1738794644359,-500.0,0.00013698,2]
[351806813,1738794644368,-624.99243347,0.00013698,2]
[351806814,1738794644378,-500.0,0.00013698,2]
[351806816,1738794644388,-6067.63,0.00013698,2]
[351806818,1738794644398,-821.54,0.00013698,2]
[351806820,1738794644408,-500.0,0.00013698,2]
[351806822,1738794644419,-500.0,0.00013698,2]
[351806824,1738794644429,-392.76298702,0.00013698,2]
[351806826,1738794644439,-500.0,0.00013698,2]
[351806828,1738794644449,-500.0,0.00013698,2]
[351806830,1738794644459,-500.0,0.00013698,2]
[351806831,1738794644470,-500.0,0.00013698,2]
[351806832,1738794644480,-500.0,0.00013698,2]
[351806833,1738794644490,-11072.57,0.00013698,2]
[351806834,1738794644500,-465.23924765,0.00013698,2]
[351806835,1738794644510,-500.0,0.00013698,2]
[351806836,1738794644520,-526.45,0.00013698,2]
[351806837,1738794644529,-506.19487016,0.00013698,2]
[351806838,1738794644539,-500.0,0.00013698,2]
[351806839,1738794644548,-1492.49,0.00013698,2]
[351806840,1738794644559,-500.0,0.00013698,2]
[351806841,1738794644569,-2628.67,0.00013698,2]
[351806842,1738794644580,-500.0,0.00013698,2]
[351806843,1738794644589,-500.0,0.00013698,2]
[351806844,1738794644599,-500.0,0.00013698,2]
[351806845,1738794644609,-500.0,0.00013698,2]
[351806846,1738794644619,-500.0,0.00013698,2]
[351806847,1738794644629,-493.45439239,0.00013698,2]
[351806848,1738794644640,-500.0,0.00013698,2]
[351806849,1738794644650,-500.0,0.00013698,2]
[351806850,1738794644661,-643.43,0.00013698,2]
[351806851,1738794644672,-512.9,0.00013698,2]
[351806852,1738794644683,-521.34,0.00013698,2]
[351806853,1738794644695,-510.89,0.00013698,2]
[351806854,1738794644705,-500.0,0.00013698,2]
[351806855,1738794644715,-939.6,0.00013698,2]
[351806856,1738794644725,-500.0,0.00013698,2]
[351806857,1738794644735,-543.95,0.00013698,2]
[351806858,1738794644745,-2545.7,0.00013698,2]
[351806859,1738794644755,-4619.05,0.00013698,2]
[351806860,1738794644765,-500.0,0.00013698,2]
[351806861,1738794644774,-500.0,0.00013698,2]
[351806862,1738794644785,-500.0,0.00013698,2]
[351806863,1738794644795,-500.0,0.00013698,2]
[351806864,1738794644809,-2422.71,0.00013698,2]
[351806865,1738794644819,-389.98335779,0.00013698,2]
[351806866,1738794644829,-34317.66,0.00013698,2]
[351806867,1738794644839,-888.9,0.00013698,2]
[351806868,1738794644850,-500.0,0.00013698,2]
[351806869,1738794644860,-500.0,0.00013698,2]
[351806870,1738794644870,-500.0,0.00013698,2]
[351806871,1738794644880,-439.00348576,0.00013698,2]
[351806872,1738794644892,-972.73,0.00013698,2]
[351806873,1738794644904,-106651.18,0.00013698,2]
[351806874,1738794644919,-500.0,0.00013698,2]
[351806875,1738794644931,-7158.26,0.00013698,2]
[351806876,1738794644941,-529.04692939,0.00013698,2]
[351806877,1738794644953,-4303.7,0.00013698,2]
[351806878,1738794644964,-1849.9,0.00013698,2]
[351806879,1738794644975,-4303.7,0.00013698,2]
[351806880,1738794644993,-4303.7,0.00013698,2]
[351806881,1738794645011,-4303.7,0.00013698,2]
[351806882,1738794645025,-4303.7,0.00013698,2]
[351806883,1738794645043,-4303.7,0.00013698,2]
[351806884,1738794645060,-4303.7,0.00013698,2]
[351806885,1738794645077,-4303.7,0.00013698,2]
[351806886,1738794645094,-4303.7,0.00013698,2]
[351806887,1738794645110,-4303.7,0.00013698,2]
[351806888,1738794645124,-4303.7,0.00013698,2]
[351806889,1738794645141,-4303.7,0.00013698,2]
[351806890,1738794645156,-4303.7,0.00013698,2]
[351806891,1738794645173,-4303.7,0.00013698,2]
[351806892,1738794645189,-647.49,0.00013698,2]
[351806893,1738794645206,-4303.7,0.00013698,2]
[351806894,1738794645223,-4303.7,0.00013698,2]
[351806895,1738794645241,-4303.7,0.00013698,2]
[351806896,1738794645258,-4303.7,0.00013698,2]
[351806897,1738794645270,-4303.7,0.00013698,2]
[351806898,1738794645285,-4303.7,0.00013698,2]
[351806899,1738794645303,-4303.7,0.00013698,2]
[351806900,1738794645315,-4303.7,0.00013698,2]
[351806901,1738794645329,-4303.7,0.00013698,2]
[351806902,1738794645346,-4303.80428907,0.00013698,2]
[351806903,1738794645358,-4756.53,0.00013698,2]
[351806904,1738794645372,-500.0,0.00013698,2]
[351806905,1738794645385,-2982.12,0.00013698,2]
[351806906,1738794645398,-500.0,0.00013698,2]
[351806907,1738794645415,-500.0,0.00013698,2]
[351806908,1738794645428,-3717.66,0.00013698,2]
[351806909,1738794645441,-500.0,0.00013698,2]
[351806910,1738794645455,-500.0,0.00013698,2]
[351806911,1738794645472,-500.0,0.00013698,2]
[351806912,1738794645489,-500.0,0.00013698,2]
[351806913,1738794645502,-500.0,0.00013698,2]
[351806914,1738794645515,-500.0,0.00013698,2]
[351806915,1738794645528,-500.0,0.00013698,2]
[351806916,1738794645544,-910.59,0.00013698,2]
[351806917,1738794645558,-902.54,0.00013698,2]
[351806918,1738794645572,-2736.14,0.00013698,2]
[351806919,1738794645587,-2903.45,0.00013698,2]
[351806920,1738794645600,-3081.0,0.00013698,2]
[351806921,1738794645613,-532.82,0.00013698,2]
[351806922,1738794645627,-500.0,0.00013698,2]
[351806923,1738794645641,-500.0,0.00013698,2]
[351806924,1738794645654,-500.0,0.00013698,2]
[351806925,1738794645670,-500.0,0.00013698,2]
[351806927,1738794645684,-500.0,0.00013698,2]
[351806929,1738794645697,-500.0,0.00013698,2]
[351806930,1738794645711,-500.0,0.00013698,2]
[351806931,1738794645725,-669.39,0.00013698,2]
[351806932,1738794645738,-500.0,0.00013698,2]
[351806933,1738794645752,-500.0,0.00013698,2]
[351806934,1738794645766,-501.77749836,0.00013698,2]
[351806935,1738794645779,-500.0,0.00013698,2]
[351806936,1738794645797,-669.62,0.00013698,2]
[351806937,1738794645810,-2722.59,0.00013698,2]
[351806938,1738794645823,-500.0,0.00013698,2]
[351806939,1738794645836,-500.0,0.00013698,2]
[351806940,1738794645850,-500.0,0.00013698,2]
[351806941,1738794645864,-500.0,0.00013698,2]
[351806942,1738794645878,-501.50141218,0.00013698,2]
[351806943,1738794645892,-500.0,0.00013698,2]
[351806944,1738794645905,-5308.7,0.00013698,2]
[351806945,1738794645922,-5308.7,0.00013698,2]
[351806946,1738794645940,-5308.7,0.00013698,2]
[351806947,1738794645957,-5308.7,0.00013698,2]
[351806948,1738794645972,-5308.7,0.00013698,2]
[351806949,1738794645987,-5308.7,0.00013698,2]
[351806950,1738794646002,-500.0,0.00013698,2]
[351806951,1738794646015,-5308.7,0.00013698,2]
[351806952,1738794646029,-5308.7,0.00013698,2]
[351806953,1738794646042,-3374.73,0.00013698,2]
[351806954,1738794646056,-5308.7,0.00013698,2]
[351806956,1738794646069,-5308.7,0.00013698,2]
[351806958,1738794646082,-5308.7,0.00013698,2]
[351806960,1738794646096,-5308.7,0.00013698,2]
[351806961,1738794646110,-5308.7,0.00013698,2]
[351806962,1738794646123,-5308.7,0.00013698,2]
[351806963,1738794646137,-5308.7,0.00013698,2]
[351806964,1738794646151,-5308.7,0.00013698,2]
[351806965,1738794646165,-5308.7,0.00013698,2]
[351806966,1738794646180,-5308.7,0.00013698,2]
[351806967,1738794646194,-5308.7,0.00013698,2]
[351806968,1738794646207,-500.0,0.00013698,2]
[351806969,1738794646220,-5308.7,0.00013698,2]
[351806970,1738794646233,-500.0,0.00013698,2]
[351806971,1738794646247,-5308.7,0.00013698,2]
[351806972,1738794646260,-5308.7,0.00013698,2]
[351806973,1738794646273,-5308.7,0.00013698,2]
[351806974,1738794646286,-500.0,0.00013698,2]
[351806975,1738794646300,-5308.89126346,0.00013698,2]
[351806976,1738794646313,-892.94,0.00013698,2]
[351806977,1738794646326,-500.0,0.00013698,2]
[351806978,1738794646337,-500.0,0.00013698,2]
[351806979,1738794646347,-1246.0,0.00013698,2]
[351806980,1738794646356,-1265.5,0.00013698,2]
[351806982,1738794646365,-557.59,0.00013698,2]
[351806983,1738794646374,-500.0,0.00013698,2]
[351806984,1738794646384,-943.77,0.00013698,2]
[351806986,1738794646394,-500.0,0.00013698,2]
[351806987,1738794646403,-500.0,0.00013698,2]
[351806988,1738794646650,-587.09,0.00013698,2]
[351806989,1738794646664,-672.48,0.00013698,2]
[351806990,1738794646673,-500.0,0.00013698,2]
[351806991,1738794646683,-500.0,0.00013698,2]
[351806992,1738794646693,-500.0,0.00013698,2]
[351806993,1738794646703,-705.43,0.00013698,2]
[351806994,1738794646713,-593.06,0.00013698,2]
[351806995,1738794646723,-500.0,0.00013698,2]
[351806996,1738794646732,-500.0,0.00013698,2]
[351806997,1738794646743,-500.0,0.00013698,2]
[351806998,1738794646752,-500.0,0.00013698,2]
[351806999,1738794646762,-500.0,0.00013698,2]
[351807000,1738794646772,-529.75,0.00013698,2]
[351807001,1738794646781,-500.0,0.00013698,2]
[351807002,1738794646791,-500.0,0.00013698,2]
[351807003,1738794646802,-500.0,0.00013698,2]
[351807004,1738794646812,-724.32,0.00013698,2]
[351807005,1738794646822,-907.0,0.00013698,2]
[351807006,1738794646831,-500.0,0.00013698,2]
[351807007,1738794646840,-8275.0,0.00013698,2]
[351807008,1738794646850,-500.0,0.00013698,2]
[351807009,1738794646859,-500.0,0.00013698,2]
[351807010,1738794646868,-540.0,0.00013698,2]
[351807011,1738794646878,-584.38961724,0.00013698,2]
[351807012,1738794646888,-500.0,0.00013698,2]
[351807013,1738794646898,-500.0,0.00013698,2]
[351807014,1738794646907,-500.0,0.00013698,2]
[351807015,1738794646917,-1361.41,0.00013698,2]
[351807016,1738794646927,-500.0,0.00013698,2]
[351807017,1738794646937,-500.0,0.00013698,2]
[351807018,1738794646947,-615.13,0.00013698,2]
[351807019,1738794646956,-614.57281206,0.00013698,2]
[351807020,1738794646966,-798.5,0.00013698,2]
[351807021,1738794646976,-500.0,0.00013698,2]
[351807022,1738794646986,-676.91,0.00013698,2]
[351807023,1738794646995,-500.0,0.00013698,2]
[351807024,1738794647005,-598.3233205,0.00013698,2]
[351807025,1738794647014,-565.64608276,0.00013698,2]
[351807026,1738794647024,-500.0,0.00013698,2]
[351807027,1738794647033,-201.6004606,0.00013699,2]
[351807028,1738794647043,-953.864061,0.00013699,2]
[351807029,1738794647053,-21599.4493118,0.00013699,2]
[351807030,1738794647063,-150.87033597,0.00013699,2]
[351807031,1738794647073,-659.18994052,0.00013699,2]
[351807032,1738794647083,-659.18994052,0.00013699,2]
[351807033,1738794647092,-659.18994052,0.00013699,2]
[351807034,1738794647102,-659.18994052,0.00013699,2]
[351807035,1738794647112,-659.18994052,0.00013699,2]
[351807036,1738794647123,-659.18994052,0.00013699,2]
[351807037,1738794647133,-659.18994052,0.00013699,2]
[351807038,1738794647142,-659.18994052,0.00013699,2]
[351807039,1738794647152,-659.18994052,0.00013699,2]
[351807040,1738794647161,-659.18994052,0.00013699,2]
[351807041,1738794647172,-659.18994052,0.00013699,2]
[351807042,1738794647181,-659.18994052,0.00013699,2]
[351807043,1738794647191,-659.18994052,0.00013699,2]
[351807044,1738794647201,-659.18994052,0.00013699,2]
[351807045,1738794647210,-659.18994052,0.00013699,2]
[351807046,1738794647220,-659.18994052,0.00013699,2]
[351807047,1738794647229,-659.18994052,0.00013699,2]
[351807048,1738794647239,-659.18994052,0.00013699,2]
[351807049,1738794647248,-659.18994052,0.00013699,2]
[351807050,1738794647257,-659.18994052,0.00013699,2]
[351807051,1738794647267,-659.18994052,0.00013699,2]
[351807052,1738794647277,-659.18994052,0.00013699,2]
[351807053,1738794647287,-659.18994052,0.00013699,2]
[351807054,1738794647296,-659.18994052,0.00013699,2]
[351807055,1738794647306,-659.18994052,0.00013699,2]
[351807056,1738794647316,-659.18994052,0.00013699,2]
[351807057,1738794647325,-659.18994052,0.00013699,2]
[351807058,1738794647335,-659.18994052,0.00013699,2]
[351807059,1738794647344,-659.18994052,0.00013699,2]
[351807060,1738794647354,-659.18994052,0.00013699,2]
[351807061,1738794647364,-659.18994052,0.00013699,2]
[351807062,1738794647373,-659.18994052,0.00013699,2]
[351807063,1738794647383,-659.18994052,0.00013699,2]
[351807064,1738794647393,-659.18994052,0.00013699,2]
[351807065,1738794647403,-659.18994052,0.00013699,2]
[351807066,1738794647417,-659.18994052,0.00013699,2]
[351807067,1738794647427,-659.18994052,0.00013699,2]
[351807068,1738794647437,-659.18994052,0.00013699,2]
[351807069,1738794647447,-659.18994052,0.00013699,2]
[351807070,1738794647457,-659.18994052,0.00013699,2]
[351807071,1738794647466,-659.18994052,0.00013699,2]
[351807072,1738794647476,-659.18994052,0.00013699,2]
[351807073,1738794647486,-659.18994052,0.00013699,2]
[351807074,1738794647498,-659.18994052,0.00013699,2]
[351807075,1738794647508,-659.18994052,0.00013699,2]
[351807076,1738794647518,-659.18994052,0.00013699,2]
[351807077,1738794647528,-659.18994052,0.00013699,2]
[351807078,1738794647538,-659.18994052,0.00013699,2]
[351807079,1738794647548,-659.18994052,0.00013699,2]
[351807080,1738794647558,-659.18994052,0.00013699,2]
[351807081,1738794647568,-659.18994052,0.00013699,2]
[351807082,1738794647577,-659.18994052,0.00013699,2]
[351807083,1738794647587,-659.18994052,0.00013699,2]
[351807084,1738794647597,-659.18994052,0.00013699,2]
[351807085,1738794647607,-659.18994052,0.00013699,2]
[351807086,1738794647617,-659.18994052,0.00013699,2]
[351807087,1738794647627,-659.18994052,0.00013699,2]
[351807088,1738794647638,-659.18994052,0.00013699,2]
[351807089,1738794647648,-659.18994052,0.00013699,2]
[351807090,1738794647659,-659.18994052,0.00013699,2]
[351807091,1738794647672,-659.18994052,0.00013699,2]
[351807092,1738794647684,-659.18994052,0.00013699,2]
[351807093,1738794647694,-659.18994052,0.00013699,2]
[351807094,1738794647704,-659.18994052,0.00013699,2]
[351807095,1738794647715,-659.18994052,0.00013699,2]
[351807096,1738794647725,-659.18994052,0.00013699,2]
[351807097,1738794647735,-659.18994052,0.00013699,2]
[351807098,1738794647746,-659.18994052,0.00013699,2]
[351807099,1738794647757,-659.18994052,0.00013699,2]
[351807100,1738794647767,-544.34152617,0.00013699,2]
[351807101,1738794647777,-2180.72017596,0.00013699,2]
[351807102,1738794647788,-2180.72017596,0.00013699,2]
[351807103,1738794647801,-2180.72017596,0.00013699,2]
[351807104,1738794647812,-2180.72017596,0.00013699,2]
[351807105,1738794647823,-2180.72017596,0.00013699,2]
[351807106,1738794647833,-2180.72017596,0.00013699,2]
[351807107,1738794647845,-2180.72017596,0.00013699,2]
[351807108,1738794647855,-2180.72017596,0.00013699,2]
[351807109,1738794647867,-2180.72017596,0.00013699,2]
[351807110,1738794647878,-2180.72017596,0.00013699,2]
[351807111,1738794647888,-2180.72017596,0.00013699,2]
[351807112,1738794647898,-2180.72017596,0.00013699,2]
[351807113,1738794647908,-2180.72017596,0.00013699,2]
[351807114,1738794647920,-2180.72017596,0.00013699,2]
[351807115,1738794647930,-2180.72017596,0.00013699,2]
[351807116,1738794647940,-2180.72017596,0.00013699,2]
[351807117,1738794647950,-2180.72017596,0.00013699,2]
[351807118,1738794647960,-2180.72017596,0.00013699,2]
[351807119,1738794647971,-2180.72017596,0.00013699,2]
[351807120,1738794647982,-2180.72017593,0.00013699,2]
[351807121,1738794647992,-500.0,0.00013699,2]
[351807122,1738794648003,-607.95045234,0.00013699,2]
[351807123,1738794648013,-500.0,0.00013699,2]
[351807124,1738794648023,-500.0,0.00013699,2]
[351807125,1738794648033,-151.0,0.000137,2]
[351807126,1738794648043,-151.0,0.000137,2]
[351807127,1738794648054,-151.0,0.000137,2]
[351807128,1738794648065,-151.0,0.000137,2]
[351807129,1738794648076,-165.17,0.000137,2]
[351807130,1738794648086,-165.17,0.000137,2]
[351807131,1738794648097,-165.17,0.000137,2]
[351807132,1738794648109,-165.17,0.000137,2]
[351807133,1738794648119,-165.17,0.000137,2]
[351807134,1738794648131,-165.17,0.000137,2]
[351807135,1738794648141,-165.17,0.000137,2]
[351807136,1738794648152,-1088.45187044,0.00013735,2]
[351807137,1738794648165,-151.0,0.000138,2]
[351807138,1738794648176,-151.0,0.000138,2]
[351807139,1738794648187,-151.0,0.000138,2]
[351807140,1738794648197,-151.0,0.000138,2]
[351807141,1738794648208,-151.0,0.000138,2]
[351807142,1738794648219,-151.0,0.000138,2]
[351807143,1738794648230,-151.0,0.000138,2]
[351807144,1738794648241,-308.4664278,0.000138,2]
[351807145,1738794648251,-306.0,0.000138,2]
[351807146,1738794648262,-391.0891689,0.00013832,2]
[351807147,1738794648273,-506.42611611,0.00013835,2]
[351807148,1738794648283,-500.0,0.00013835,2]
[351807149,1738794648294,-500.0,0.00013835,2]
[351807150,1738794648304,-505.74199132,0.00013835,2]
[351807151,1738794648315,-500.0,0.00013835,2]
[351807152,1738794648325,-500.0,0.00013835,2]
[351807153,1738794648335,-500.0,0.00013835,2]